bitfinex/quotes_BTCUSD_20251021
["timestamp","ask_amount","ask_price","bid_price","bid_amount"]
[1761070832579,0.584807,112080.0,112060.0,0.17847581]
[1761070832798,0.584807,112080.0,112070.0,0.11384]
[1761070833269,0.584807,112080.0,112070.0,0.29229989]
[1761070833492,0.54905458,112080.0,112070.0,0.29229989]
[1761070834128,0.51859137,112080.0,112070.0,0.29229989]
[1761070834378,0.00014741,112080.0,112070.0,0.33941095]
[1761070834606,0.00014741,112080.0,112070.0,0.89572017]
[1761070834820,0.00014741,112080.0,112070.0,0.84860911]
[1761070835245,0.00014741,112080.0,112070.0,0.91494584]
[1761070835459,0.00014741,112080.0,112070.0,0.88479139]
[1761070836391,0.00014741,112080.0,112070.0,0.91486877]
[1761070837311,0.00014741,112080.0,112070.0,0.88479139]
[1761070837721,0.00014741,112080.0,112070.0,0.9746104]
[1761070838006,0.00014741,112080.0,112070.0,0.88479139]
[1761070838489,0.00014741,112080.0,112070.0,0.41830118]
[1761070838706,0.17845989,112070.0,112060.0,0.03092818]
[1761070838923,0.17845989,112070.0,112060.0,0.00033492]
[1761070839134,0.6449501,112070.0,112060.0,0.11413492]
[1761070839572,0.51845989,112070.0,112060.0,0.11413492]
[1761070841576,0.54529266,112070.0,112060.0,0.11413492]
[1761070842542,0.54529266,112070.0,112060.0,0.29261073]
[1761070842543,0.36683277,112070.0,112060.0,0.29261073]
[1761070842765,0.51859137,112080.0,112070.0,0.17845989]
[1761070842977,0.17845989,112070.0,112060.0,0.29261073]
[1761070843191,0.17845989,112070.0,112060.0,0.11413492]
[1761070843636,0.17845989,112070.0,112060.0,0.29261073]
[1761070845963,0.54542167,112080.0,112060.0,0.29261073]
[1761070846139,0.17845989,112070.0,112060.0,0.29261073]
[1761070846836,0.17845989,112070.0,112060.0,0.11413492]
[1761070847588,0.17845989,112070.0,112060.0,0.29261073]
[1761070847994,0.17845989,112070.0,112060.0,0.11413492]
[1761070848219,0.17845989,112070.0,112060.0,0.00033492]
[1761070848466,1.18856911,112070.0,112060.0,0.00033492]
[1761070848693,1.25367048,112070.0,112060.0,0.00033492]
[1761070848909,1.50551144,112070.0,112060.0,0.00033492]
[1761070850403,1.50651144,112070.0,112060.0,0.00033492]
[1761070851062,1.50751144,112070.0,112060.0,0.00033492]
[1761070851271,1.50751144,112070.0,112020.0,0.2138]
[1761070851272,0.00892458,112050.0,112020.0,0.2138]
[1761070851484,0.90084852,112030.0,112020.0,0.1]
[1761070851694,0.1785236,112030.0,112020.0,0.1]
[1761070852114,0.20536627,112030.0,112020.0,0.1]
[1761070852741,0.20536627,112030.0,112020.0,0.10014668]
[1761070854586,0.23634928,112030.0,112020.0,0.10014668]
[1761070854997,0.05782568,112030.0,112020.0,0.27868622]
[1761070855199,0.20950661,112030.0,112020.0,0.10014668]
[1761070856775,0.20950661,112030.0,112020.0,0.27868622]
[1761070857277,0.20950661,112030.0,112020.0,0.1014869]
[1761070857844,0.20950661,112030.0,112020.0,0.28002644]
[1761070858258,0.03098301,112030.0,112020.0,0.28002644]
[1761070858459,0.1785236,112030.0,112020.0,0.28002644]
[1761070858696,0.54534865,112040.0,112020.0,0.39382644]
[1761070858881,0.1785236,112030.0,112020.0,0.39248622]
[1761070859494,0.36684098,112040.0,112030.0,0.1785236]
[1761070859659,0.17849305,112050.0,112030.0,0.1785236]
[1761070859884,0.002,112040.0,112030.0,0.1785236]
[1761070860084,0.001,112040.0,112030.0,0.1785236]
[1761070860280,0.03095366,112050.0,112040.0,0.17850767]
[1761070860466,0.17849174,112050.0,112040.0,0.17850767]
[1761070860675,0.32807411,112060.0,112040.0,0.17850767]
[1761070860885,0.17849174,112050.0,112040.0,0.17850767]
[1761070861797,0.33156504,112060.0,112050.0,0.17849174]
[1761070862328,0.21776504,112060.0,112050.0,0.17849174]
[1761070862558,0.21776504,112060.0,112040.0,0.29230767]
[1761070862771,0.17849174,112050.0,112040.0,0.38212668]
[1761070862987,0.17847581,112060.0,112040.0,0.38212668]
[1761070863193,0.17847581,112060.0,112050.0,0.17849174]
[1761070863366,0.20952199,112060.0,112040.0,0.38212668]
[1761070863791,0.17849174,112050.0,112040.0,0.38212668]
[1761070863982,0.17849174,112050.0,112040.0,0.1138]
[1761070864428,0.20952199,112060.0,112040.0,0.32163995]
[1761070864632,0.20952962,112060.0,112050.0,0.17849174]
[1761070864842,0.20952199,112060.0,112040.0,0.38212668]
[1761070865125,0.20952199,112060.0,112050.0,0.00033496]
[1761070865338,0.18736615,112080.0,112060.0,0.17847581]
[1761070865544,0.18736615,112080.0,112070.0,0.17845989]
[1761070865760,0.03036463,112080.0,112070.0,0.17845989]
[1761070865965,0.301221,112100.0,112080.0,0.17844396]
[1761070866134,0.17842882,112090.0,112070.0,0.17845989]
[1761070866366,0.17842882,112090.0,112080.0,0.17844396]
[1761070866604,0.00014744,112090.0,112080.0,0.17844396]
[1761070866820,0.00014744,112090.0,112080.0,0.29124396]
[1761070867227,0.17857548,112090.0,112080.0,0.29124396]
[1761070867338,0.00014744,112090.0,112080.0,0.30508124]
[1761070867946,0.00014744,112090.0,112080.0,0.29124396]
[1761070867947,0.17857548,112090.0,112080.0,0.29124396]
[1761070869469,0.00014744,112090.0,112080.0,0.29124396]
[1761070869670,0.00014744,112090.0,112080.0,0.17844396]
[1761070869900,0.17844396,112080.0,112050.0,0.33780494]
[1761070870019,0.178464,112070.0,112060.0,0.20357901]
[1761070870463,0.178464,112070.0,112060.0,0.38205482]
[1761070870667,0.178464,112070.0,112060.0,0.11376]
[1761070870871,0.17847581,112060.0,112050.0,0.00033496]
[1761070871074,0.90080073,112060.0,112050.0,0.00033496]
[1761070871293,1.26974852,112060.0,112050.0,0.00033496]
[1761070871500,1.35956753,112060.0,112050.0,0.00033496]
[1761070871745,0.5185236,112030.0,112020.0,0.1]
[1761070872152,0.26829482,112060.0,112030.0,0.1785236]
[1761070872351,0.17849174,112050.0,112040.0,0.17850767]
[1761070872556,0.341,112060.0,112050.0,0.17849174]
[1761070872728,0.17996479,112080.0,112060.0,0.17847581]
[1761070872944,0.00014741,112080.0,112070.0,0.17845989]
[1761070873144,0.17845989,112070.0,112060.0,0.11376]
[1761070873330,0.17845989,112070.0,112060.0,0.29123581]
[1761070873524,0.17859137,112080.0,112060.0,0.29123581]
[1761070873802,0.17859137,112080.0,112070.0,0.17845989]
[1761070874424,0.17859137,112080.0,112060.0,0.42802701]
[1761070874598,0.17859137,112080.0,112060.0,0.38105482]
[1761070875024,0.17859137,112080.0,112070.0,0.17845989]
[1761070875996,0.17845989,112070.0,112060.0,0.11276]
[1761070876196,0.17845989,112070.0,112060.0,0.29123581]
[1761070876401,0.51845989,112070.0,112060.0,0.11276]
[1761070876612,0.51845989,112070.0,112040.0,0.18743305]
[1761070876613,0.17847581,112060.0,112040.0,0.18743305]
[1761070876838,0.17847581,112060.0,112050.0,0.29225174]
[1761070877473,0.17847581,112060.0,112050.0,0.11376]
[1761070877881,0.17847581,112060.0,112050.0,0.29225174]
[1761070878104,0.52738288,112070.0,112050.0,0.29225174]
[1761070878513,0.17847581,112060.0,112050.0,0.29225174]
[1761070879655,0.17847581,112060.0,112050.0,0.11376]
[1761070880275,0.17847581,112060.0,112050.0,0.29225174]
[1761070880503,0.17847581,112060.0,112050.0,0.11376]
[1761070880876,0.17847581,112060.0,112040.0,0.00033501]
[1761070880877,0.17849174,112050.0,112040.0,0.00033501]
[1761070881103,0.51849174,112050.0,112040.0,0.11409501]
[1761070881463,0.51849174,112050.0,112040.0,0.00033501]
[1761070882824,1.24081666,112050.0,112040.0,0.00033501]
[1761070883040,1.35958346,112050.0,112040.0,0.00033501]
[1761070883466,0.63725854,112050.0,112040.0,0.00033501]
[1761070884156,0.60831075,112050.0,112040.0,0.00033501]
[1761070884358,1.33063567,112050.0,112040.0,0.00033501]
[1761070884561,1.35958346,112050.0,112040.0,0.00033501]
[1761070884914,1.33163567,112050.0,112040.0,0.00033501]
[1761070885114,1.33263567,112050.0,112040.0,0.00033501]
[1761070885344,0.61031075,112050.0,112040.0,0.00033501]
[1761070888384,1.33263567,112050.0,112040.0,0.00033501]
[1761070888977,0.61031075,112050.0,112040.0,0.00033501]
[1761070890721,0.72407075,112050.0,112040.0,0.00033501]
[1761070891658,0.63425174,112050.0,112040.0,0.00033501]
[1761070892913,0.63325174,112050.0,112040.0,0.00033501]
[1761070893664,0.63225174,112050.0,112040.0,0.00033501]
[1761070893827,0.63325174,112050.0,112040.0,0.00033501]
[1761070894186,0.63425174,112050.0,112040.0,0.00033501]
[1761070895145,0.342,112050.0,112040.0,0.17884268]
[1761070895349,0.18049174,112050.0,112040.0,0.17884268]
[1761070895931,0.17949174,112050.0,112040.0,0.00033501]
[1761070896134,0.17949174,112050.0,112040.0,0.17884268]
[1761070896465,0.17849174,112050.0,112040.0,0.17884268]
[1761070896886,0.17949174,112050.0,112040.0,0.17884268]
[1761070897517,0.17849174,112050.0,112040.0,0.17884268]
[1761070900852,0.17849174,112050.0,112040.0,0.00033501]
[1761070901047,0.51849174,112050.0,112040.0,0.00033501]
[1761070902240,0.51949174,112050.0,112040.0,0.00033501]
[1761070902645,0.001,112050.0,112040.0,0.17884268]
[1761070902876,0.002,112050.0,112040.0,0.17884268]
[1761070903074,0.18049174,112050.0,112040.0,0.29260268]
[1761070903278,0.17949174,112050.0,112040.0,0.29260268]
[1761070903870,0.17849174,112050.0,112040.0,0.29260268]
[1761070905022,0.17849174,112050.0,112040.0,0.11409501]
[1761070905222,0.51849174,112050.0,112040.0,0.11409501]
[1761070905428,0.51849174,112050.0,112040.0,0.29260268]
[1761070905601,0.51849174,112050.0,112040.0,0.11409501]
[1761070905799,0.51849174,112050.0,112040.0,0.00033501]
[1761070907522,0.51949174,112050.0,112040.0,0.00033501]
[1761070907727,0.52049174,112050.0,112040.0,0.00033501]
[1761070908096,0.51949174,112050.0,112040.0,0.00033501]
[1761070908300,0.52049174,112050.0,112040.0,0.00033501]
[1761070908530,0.52049174,112050.0,112040.0,0.17884268]
[1761070908710,0.52049174,112050.0,112040.0,0.00033501]
[1761070908921,0.51949174,112050.0,112040.0,0.17884268]
[1761070909154,0.52049174,112050.0,112040.0,0.00033501]
[1761070909862,0.51949174,112050.0,112040.0,0.00033501]
[1761070910118,0.51849174,112050.0,112040.0,0.00033501]
[1761070912301,0.48941806,112050.0,112040.0,0.00033501]
[1761070913049,0.31092632,112050.0,112040.0,0.17884268]
[1761070913272,0.48941806,112050.0,112040.0,0.29260268]
[1761070914065,0.48941806,112050.0,112040.0,0.11409501]
[1761070914344,0.48941806,112050.0,112040.0,0.00033501]
[1761070915643,0.48941806,112050.0,112040.0,0.17884268]
[1761070915903,0.31092632,112050.0,112040.0,0.64553518]
[1761070916071,0.11376,112070.0,112050.0,0.17847655]
[1761070916072,0.17846352,112070.0,112050.0,0.17847655]
[1761070916301,0.17846352,112070.0,112050.0,0.29223655]
[1761070916682,0.17846352,112070.0,112060.0,0.17847581]
[1761070917948,0.17846352,112070.0,112050.0,0.29223655]
[1761070918910,0.17846352,112070.0,112060.0,0.17847581]
[1761070919670,0.17846352,112070.0,112050.0,0.29223655]
[1761070920090,0.17846352,112070.0,112060.0,0.17847581]
[1761070920920,0.17845989,112070.0,112060.0,0.17847581]
[1761070923157,0.51859137,112080.0,112070.0,0.17845989]
[1761070923573,0.51859137,112080.0,112060.0,0.17847581]
[1761070924184,0.51859137,112080.0,112070.0,0.17845989]
[1761070924397,0.51959137,112080.0,112060.0,0.17847581]
[1761070925003,0.17845989,112070.0,112060.0,0.17847581]
[1761070925158,0.17845989,112070.0,112050.0,0.29223655]
[1761070925328,0.17845989,112070.0,112060.0,0.17847581]
[1761070925537,0.52851356,112080.0,112060.0,0.17847581]
[1761070925736,0.52951356,112080.0,112070.0,0.17845989]
[1761070925937,0.00114741,112080.0,112070.0,0.8486914]
[1761070926177,0.00014741,112080.0,112070.0,0.3819989]
[1761070926940,0.00114741,112080.0,112070.0,0.3819989]
[1761070927152,0.17959137,112080.0,112070.0,0.17845989]
[1761070927367,0.64528387,112080.0,112070.0,0.11372]
[1761070927572,0.17849174,112050.0,112040.0,0.00033501]
[1761070927946,0.17849174,112050.0,112040.0,0.17884268]
[1761070928149,0.51849174,112050.0,112040.0,0.11405501]
[1761070928353,0.51849174,112050.0,112040.0,0.00033501]
[1761070928613,0.98518424,112050.0,112040.0,0.00033501]
[1761070928822,0.75097557,112050.0,112040.0,0.00133501]
[1761070929047,1.21766807,112050.0,112040.0,0.00133501]
[1761070929409,0.51849174,112050.0,112040.0,0.00133501]
[1761070929603,0.63221174,112050.0,112040.0,0.00033501]
[1761070930330,0.63421174,112050.0,112040.0,0.00033501]
[1761070930774,0.342,112050.0,112040.0,0.17884268]
[1761070931161,0.342,112050.0,112040.0,0.29256268]
[1761070931162,0.002,112050.0,112040.0,0.29256268]
[1761070931587,0.17849174,112050.0,112040.0,0.11405501]
[1761070931757,0.002,112050.0,112040.0,0.38238169]
[1761070931953,0.001,112050.0,112040.0,0.38238169]
[1761070932359,0.51847939,112060.0,112050.0,0.17849174]
[1761070933109,0.51847939,112060.0,112040.0,0.38238169]
[1761070933286,0.17849174,112050.0,112040.0,0.38238169]
[1761070933627,0.17849174,112050.0,112040.0,0.11405501]
[1761070934465,0.98518424,112050.0,112040.0,0.00033501]
[1761070935271,1.18872325,112050.0,112040.0,0.00033501]
[1761070936265,0.72203075,112050.0,112040.0,0.00033501]
[1761070936676,0.72303075,112050.0,112040.0,0.00033501]
[1761070937034,0.86512375,112050.0,112040.0,0.00033501]
[1761070937626,0.93095875,112050.0,112040.0,0.00033501]
[1761070937833,0.93195875,112050.0,112040.0,0.00033501]
[1761070938040,0.77530474,112050.0,112040.0,0.00033501]
[1761070938260,0.32258474,112050.0,112040.0,0.17884268]
[1761070938495,0.32258474,112050.0,112040.0,0.00033501]
[1761070938496,0.32158474,112050.0,112040.0,0.00033501]
[1761070938880,0.66258474,112050.0,112040.0,0.00033501]
[1761070939084,0.66158474,112050.0,112040.0,0.00033501]
[1761070939452,0.66058474,112050.0,112040.0,0.00033501]
[1761070941469,0.66058474,112050.0,112040.0,0.17884268]
[1761070941887,0.142093,112050.0,112040.0,0.29256268]
[1761070942301,0.32058474,112050.0,112040.0,0.29256268]
[1761070943146,0.142093,112050.0,112040.0,0.75925518]
[1761070943294,0.142093,112050.0,112040.0,0.84907419]
[1761070943507,0.142093,112050.0,112040.0,0.9388932]
[1761070943721,0.142093,112050.0,112040.0,0.97507548]
[1761070944122,0.142093,112050.0,112040.0,0.99911017]
[1761070944324,0.142093,112050.0,112040.0,0.88525647]
[1761070944570,0.142093,112050.0,112040.0,0.88625647]
[1761070944977,0.142093,112050.0,112040.0,0.85007419]
[1761070945393,0.32058474,112050.0,112040.0,0.09115402]
[1761070945796,0.32058474,112050.0,112040.0,0.11505501]
[1761070946438,0.32058474,112050.0,112040.0,0.29356268]
[1761070946640,0.66058474,112050.0,112040.0,0.11405501]
[1761070947057,0.66058474,112050.0,112040.0,0.29256268]
[1761070947465,0.482093,112050.0,112040.0,0.29256268]
[1761070947892,0.142093,112050.0,112040.0,0.38238169]
[1761070949208,0.142093,112050.0,112040.0,0.84907419]
[1761070949423,0.142093,112050.0,112040.0,0.38238169]
[1761070950764,0.142093,112050.0,112040.0,0.84907419]
[1761070950972,0.142093,112050.0,112040.0,0.88525647]
[1761070951230,0.142093,112050.0,112040.0,0.90929116]
[1761070951474,0.142093,112050.0,112040.0,1.95460267]
[1761070951657,0.142093,112050.0,112040.0,1.48791017]
[1761070951855,0.142093,112050.0,112040.0,1.51998265]
[1761070952357,0.142093,112050.0,112040.0,1.83787515]
[1761070952559,0.142093,112050.0,112040.0,1.86194919]
[1761070953383,0.21367003,112100.0,112090.0,0.17842804]
[1761070953586,0.21380148,112100.0,112090.0,0.29214804]
[1761070954042,0.02637931,112100.0,112090.0,0.33920724]
[1761070954179,0.02637931,112100.0,112090.0,0.29214804]
[1761070954383,0.02637931,112100.0,112090.0,0.38196705]
[1761070954725,0.02737931,112100.0,112090.0,0.38196705]
[1761070954932,0.02837931,112100.0,112090.0,0.38196705]
[1761070955091,0.20679144,112100.0,112090.0,0.38196705]
[1761070955712,0.00213145,112100.0,112090.0,0.44507839]
[1761070955885,0.00113145,112100.0,112090.0,0.91177089]
[1761070956238,0.00013145,112100.0,112090.0,0.44507839]
[1761070956390,0.00013145,112100.0,112090.0,0.91177089]
[1761070958050,0.00013145,112100.0,112090.0,0.44507839]
[1761070958261,0.00013145,112100.0,112090.0,0.91177089]
[1761070958684,0.00013145,112100.0,112090.0,0.44507839]
[1761070962091,0.00013145,112100.0,112090.0,0.91177089]
[1761070965374,0.00013145,112100.0,112090.0,0.94795317]
[1761070967244,0.00013145,112100.0,112090.0,0.88484183]
[1761070968396,0.00013145,112100.0,112090.0,0.88584183]
[1761070968990,0.00013145,112100.0,112090.0,0.88684183]
[1761070970696,0.00013145,112100.0,112090.0,1.14128444]
[1761070972122,0.00013145,112100.0,112090.0,0.42014933]
[1761070972339,0.00013145,112100.0,112090.0,1.17277716]
[1761070973302,0.00013145,112100.0,112090.0,1.14128444]
[1761070977552,0.00013145,112100.0,112090.0,1.16420218]
[1761070977747,0.00013145,112100.0,112090.0,1.52821464]
[1761070978286,0.00013145,112100.0,112090.0,1.56028712]
[1761070978819,0.00013145,112100.0,112090.0,1.53627466]
[1761070979026,0.00238409,112110.0,112100.0,0.21459441]
[1761070979232,0.00238409,112110.0,112100.0,1.04955213]
[1761070979452,0.00238409,112110.0,112100.0,1.38955213]
[1761070979652,0.00238409,112110.0,112100.0,1.42162461]
[1761070980273,0.00238409,112110.0,112100.0,1.39762101]
[1761070980481,0.00238409,112110.0,112100.0,1.53554875]
[1761070981333,0.00238409,112110.0,112100.0,1.50347627]
[1761070981457,0.00238409,112110.0,112100.0,1.53551736]
[1761070981849,0.00238409,112110.0,112100.0,1.53751736]
[1761070982284,0.00238409,112110.0,112100.0,1.53752509]
[1761070983216,0.00238409,112110.0,112100.0,1.50547627]
[1761070983421,0.00238409,112110.0,112100.0,1.53752927]
[1761070984190,0.00238409,112110.0,112100.0,1.50547627]
[1761070984415,0.00238409,112110.0,112100.0,1.65427627]
[1761070986361,0.0004,112150.0,112130.0,0.17836439]
[1761070986566,0.00053147,112150.0,112140.0,0.29194849]
[1761070986990,0.17886406,112150.0,112140.0,0.29194849]
[1761070987357,0.2025226,112150.0,112140.0,0.29194849]
[1761070987576,0.02519001,112150.0,112140.0,0.3817675]
[1761070987813,0.02419001,112150.0,112140.0,0.44170996]
[1761070988060,0.2015226,112150.0,112140.0,0.44170996]
[1761070988296,0.2015226,112150.0,112140.0,0.20341901]
[1761070988518,0.17835919,112140.0,112120.0,0.24751308]
[1761070988742,0.21043922,112150.0,112130.0,0.3817834]
[1761070988961,0.21043922,112150.0,112140.0,0.17834849]
[1761070989185,0.21043922,112150.0,112130.0,0.3817834]
[1761070989401,0.21043922,112150.0,112130.0,0.4423099]
[1761070989915,0.21043922,112150.0,112140.0,0.17834849]
[1761070990289,0.02319001,112150.0,112140.0,0.17834849]
[1761070990525,0.2015226,112150.0,112140.0,0.19618333]
[1761070990754,0.02319001,112150.0,112140.0,0.28600234]
[1761070990968,0.02419001,112150.0,112140.0,0.2681675]
[1761070991443,0.17834849,112140.0,112130.0,0.1136]
[1761070991654,0.2015226,112150.0,112130.0,0.38178314]
[1761070991879,0.00100381,112140.0,112130.0,0.38178314]
[1761070992767,0.00100381,112140.0,112130.0,0.44230961]
[1761070992997,0.00100381,112140.0,112130.0,0.38178314]
[1761070993226,0.00100381,112140.0,112130.0,0.79171478]
[1761070993678,0.1793523,112140.0,112130.0,0.38178314]
[1761070993883,0.1793523,112140.0,112130.0,0.08981901]
[1761070994122,0.17836439,112130.0,112120.0,0.1783803]
[1761070994335,0.17836439,112130.0,112120.0,0.38179931]
[1761070994542,0.17903365,112130.0,112120.0,0.26819931]
[1761070994747,0.17903365,112130.0,112120.0,0.38179931]
[1761070995207,0.00066926,112130.0,112120.0,0.38179931]
[1761070995651,0.17903365,112130.0,112120.0,0.38179931]
[1761070996452,0.17903365,112130.0,112120.0,0.1136]
[1761070996894,0.17903365,112130.0,112120.0,0.2919803]
[1761071001097,0.00066926,112130.0,112120.0,0.2919803]
[1761071001304,0.17903365,112130.0,112120.0,0.2919803]
[1761071001511,0.00066926,112130.0,112120.0,0.2919803]
[1761071004825,0.00066926,112130.0,112120.0,0.91594125]
[1761071005911,0.00066926,112130.0,112120.0,0.41798159]
[1761071006076,0.00066926,112130.0,112120.0,0.38179931]
[1761071006283,0.00066926,112130.0,112120.0,0.38175931]
[1761071007459,0.00066926,112130.0,112120.0,0.79169095]
[1761071007996,0.00066926,112130.0,112120.0,0.38175931]
[1761071010330,0.00066926,112130.0,112120.0,0.79169095]
[1761071011321,0.00066926,112130.0,112120.0,0.88150996]
[1761071012357,0.00066926,112130.0,112120.0,0.91769224]
[1761071012612,0.00066926,112130.0,112120.0,0.47401409]
[1761071012787,0.00066926,112130.0,112120.0,0.88394573]
[1761071013399,0.34443245,112160.0,112140.0,0.17834849]
[1761071013607,0.34443245,112160.0,112140.0,0.29190849]
[1761071013608,0.17833259,112150.0,112140.0,0.29190849]
[1761071014022,0.17833259,112150.0,112140.0,0.3817275]
[1761071014023,0.0006691,112150.0,112140.0,0.3817275]
[1761071014231,0.34049091,112160.0,112150.0,0.21451487]
[1761071014232,0.00049091,112160.0,112150.0,0.21451487]
[1761071014444,0.00049091,112160.0,112150.0,0.62444651]
[1761071014884,0.00049091,112160.0,112150.0,0.6564885]
[1761071015311,0.00049091,112160.0,112150.0,0.71426552]
[1761071015521,0.00049091,112160.0,112150.0,0.80408453]
[1761071015732,0.00049091,112160.0,112150.0,1.14408453]
[1761071015940,0.00049091,112160.0,112150.0,1.17612652]
[1761071016363,0.00049091,112160.0,112150.0,1.14608453]
[1761071017449,0.00049091,112160.0,112150.0,1.05626552]
[1761071017687,0.00049091,112160.0,112150.0,0.82982552]
[1761071018339,0.00049091,112160.0,112150.0,1.11401152]
[1761071020429,0.00082539,112160.0,112150.0,1.11401152]
[1761071021651,0.00082539,112160.0,112150.0,0.59051988]
[1761071021852,0.00082539,112160.0,112150.0,0.6678576]
[1761071022710,0.00082539,112160.0,112150.0,0.6668576]
[1761071022912,0.00086539,112160.0,112150.0,0.6668576]
[1761071023244,0.00086539,112160.0,112150.0,0.48752501]
[1761071023451,1.23980213,112160.0,112150.0,0.284186]
[1761071023627,0.51918208,112160.0,112150.0,0.284186]
[1761071028945,1.23980213,112160.0,112150.0,0.284186]
[1761071030126,0.51918208,112160.0,112150.0,0.284186]
[1761071030312,0.52018208,112160.0,112150.0,0.284186]
[1761071030913,0.51918208,112160.0,112150.0,0.284186]
[1761071031142,0.52018208,112160.0,112150.0,0.284186]
[1761071031687,0.52118208,112160.0,112150.0,0.284186]
[1761071032192,0.63470208,112160.0,112150.0,0.284186]
[1761071032808,1.10054731,112160.0,112150.0,0.284186]
[1761071034729,0.63470208,112160.0,112150.0,0.284186]
[1761071035380,0.63470208,112160.0,112150.0,0.46251859]
[1761071036161,0.63470208,112160.0,112150.0,0.284186]
[1761071036363,0.00286539,112160.0,112150.0,0.5523376]
[1761071036600,0.00286539,112160.0,112150.0,1.06761852]
[1761071037151,0.00186539,112160.0,112150.0,1.06761852]
[1761071037357,0.00086539,112160.0,112150.0,1.06761852]
[1761071037558,0.00086539,112160.0,112150.0,1.09160983]
[1761071038341,0.00086539,112160.0,112150.0,0.6257646]
[1761071038646,0.62811736,112180.0,112150.0,0.6658576]
[1761071038818,0.17830184,112170.0,112150.0,0.6658576]
[1761071039440,0.17831669,112160.0,112150.0,0.48752501]
[1761071040047,0.17831669,112160.0,112150.0,0.397706]
[1761071040401,0.17831669,112160.0,112150.0,0.57603859]
[1761071040652,0.51830079,112170.0,112150.0,0.6658576]
[1761071040811,0.16227213,112180.0,112160.0,0.17831669]
[1761071041043,0.20790829,112190.0,112170.0,0.29177258]
[1761071041293,0.20805548,112190.0,112170.0,0.38159159]
[1761071041469,0.54805548,112190.0,112170.0,0.38159159]
[1761071042451,0.20805548,112190.0,112180.0,0.17828489]
[1761071042871,0.20805548,112190.0,112170.0,0.38159159]
[1761071043070,0.20805548,112190.0,112180.0,0.17828489]
[1761071043494,0.20805548,112190.0,112170.0,0.38159159]
[1761071043727,0.20805548,112190.0,112170.0,0.4714106]
[1761071043870,0.20805548,112190.0,112180.0,0.19611337]
[1761071043871,0.20805538,112190.0,112180.0,0.19611337]
[1761071044079,0.20805538,112190.0,112180.0,0.01782848]
[1761071044729,0.20805538,112190.0,112180.0,0.19611337]
[1761071045472,0.02978638,112190.0,112180.0,0.19611337]
[1761071045674,0.20805538,112190.0,112180.0,0.19611337]
[1761071045895,0.00054719,112190.0,112180.0,0.3258744]
[1761071046578,0.00054719,112190.0,112180.0,0.2681039]
[1761071047052,0.00155033,112190.0,112180.0,0.2681039]
[1761071047694,0.17981933,112190.0,112180.0,0.08981901]
[1761071047924,0.17981933,112190.0,112180.0,0.2681039]
[1761071048735,0.00155033,112190.0,112180.0,0.2681039]
[1761071048864,0.17981933,112190.0,112180.0,0.2681039]
[1761071049283,0.17981933,112190.0,112180.0,0.08981901]
[1761071049480,0.17981933,112190.0,112180.0,0.2681039]
[1761071050492,0.17981933,112190.0,112180.0,0.08981901]
[1761071050730,0.17828489,112180.0,112170.0,0.11348]
[1761071050929,0.17828489,112180.0,112170.0,0.20329901]
[1761071051332,0.17828489,112180.0,112170.0,0.08981901]
[1761071051540,0.17828489,112180.0,112170.0,0.3815998]
[1761071051763,0.17881619,112190.0,112170.0,0.3815998]
[1761071051972,0.17828489,112180.0,112170.0,0.3815998]
[1761071053023,0.17881619,112190.0,112170.0,0.3815998]
[1761071053237,0.17881619,112190.0,112180.0,0.19611337]
[1761071054476,0.00054719,112190.0,112180.0,0.75177761]
[1761071054689,0.00054719,112190.0,112180.0,0.73394913]
[1761071055151,0.00054719,112190.0,112180.0,0.2681039]
[1761071056077,0.00054719,112190.0,112180.0,0.77013141]
[1761071056298,0.00054719,112190.0,112180.0,0.85995042]
[1761071056739,0.00155033,112190.0,112180.0,0.85995042]
[1761071057171,0.0004,112200.0,112190.0,0.518269]
[1761071057376,0.0004,112200.0,112190.0,1.24751832]
[1761071057532,0.0004,112200.0,112190.0,1.25559751]
[1761071057736,0.0004,112200.0,112190.0,1.34541652]
[1761071057945,0.0004,112200.0,112190.0,1.36937744]
[1761071058177,0.0004,112200.0,112190.0,1.38992397]
[1761071058386,0.0004,112200.0,112190.0,0.87149022]
[1761071058560,0.0004,112200.0,112190.0,1.33733545]
[1761071059072,0.0004,112200.0,112190.0,1.37137744]
[1761071059506,0.0004,112200.0,112190.0,1.33933545]
[1761071059911,0.0004,112200.0,112190.0,1.37137744]
[1761071060284,1e-08,112200.0,112190.0,1.82326174]
[1761071060485,1e-08,112200.0,112190.0,1.87137047]
[1761071060940,1e-08,112200.0,112190.0,1.87494211]
[1761071061169,1e-08,112210.0,112200.0,0.17825311]
[1761071061325,0.0004,112250.0,112240.0,0.21437187]
[1761071061531,0.00054716,112250.0,112240.0,0.41763088]
[1761071062326,0.02035035,112250.0,112240.0,0.3814486]
[1761071062585,0.00054716,112250.0,112240.0,0.3814486]
[1761071062725,0.00054716,112250.0,112240.0,0.88347611]
[1761071062926,0.00054716,112250.0,112240.0,0.97329512]
[1761071063171,0.00058716,112250.0,112240.0,0.97329512]
[1761071063601,0.00058716,112250.0,112240.0,0.93711284]
[1761071063794,0.00058716,112250.0,112240.0,0.97329512]
[1761071065190,0.00058716,112250.0,112240.0,0.99722373]
[1761071065394,0.00058716,112250.0,112240.0,0.97329512]
[1761071066660,0.00058716,112250.0,112240.0,1.43914035]
[1761071066863,0.00058716,112250.0,112240.0,1.46306896]
[1761071067465,0.00058716,112250.0,112240.0,1.43914035]
[1761071068191,0.00259211,112250.0,112240.0,1.43914035]
[1761071069174,0.00259211,112250.0,112240.0,1.44014035]
[1761071069513,0.00259211,112250.0,112240.0,1.43914035]
[1761071069718,0.00259211,112250.0,112240.0,1.44014035]
[1761071069865,0.00259211,112250.0,112240.0,1.44114035]
[1761071070812,0.00259211,112250.0,112240.0,0.97529512]
[1761071070970,0.00259211,112250.0,112240.0,0.97521512]
[1761071071406,0.02245195,112250.0,112240.0,0.82567284]
[1761071071619,0.18076582,112250.0,112240.0,0.09181901]
[1761071071823,0.18076582,112250.0,112240.0,0.3833686]
[1761071072025,0.20037839,112250.0,112240.0,0.3823686]
[1761071072238,0.20037839,112250.0,112240.0,0.20417901]
[1761071072665,0.20037839,112250.0,112240.0,0.08981901]
[1761071072926,0.20037839,112250.0,112240.0,0.20317901]
[1761071073885,0.20137839,112250.0,112240.0,0.20317901]
[1761071074303,0.20137839,112250.0,112240.0,0.3813686]
[1761071078010,0.20137839,112250.0,112240.0,0.20317901]
[1761071078214,0.20137839,112250.0,112240.0,0.3813686]
[1761071079591,0.20037839,112250.0,112240.0,0.3813686]
[1761071080586,0.20037839,112250.0,112240.0,0.84721383]
[1761071081220,0.20037839,112250.0,112240.0,0.3813686]
[1761071082026,0.20037839,112250.0,112240.0,0.20317901]
[1761071082618,0.20037839,112250.0,112240.0,0.3813686]
[1761071083339,0.20137839,112250.0,112240.0,0.3813686]
[1761071083536,0.20137839,112250.0,112240.0,0.84721383]
[1761071084056,0.20037839,112250.0,112240.0,0.84721383]
[1761071084261,0.20037839,112250.0,112240.0,0.3813686]
[1761071084596,0.02220468,112250.0,112240.0,0.84721383]
[1761071084796,0.02220468,112250.0,112240.0,0.93703284]